Cogmind - Beta 15 @@@ ROGUE MODE // 2025.06.05 @ 20:21:43 Player: Demo Result: Destroyed by G-47 Trooper with Particle Gun Performance ------------- Evolutions (0) 0 Regions Visited (4) 800 Robots Destroyed (28) 140 Value Destroyed (541) 541 Prototype IDs (25) 500 Alien Tech Used (0) 0 Bonus (279) 279 TOTAL SCORE: 2260 Bonus ------- Follower Combat Kills 46 Aligned with FarCom 300 Friendly Fire -67 Cogmind --------- Core Integrity 0/250 Matter 300/300 Energy 195/250 System Corruption 8% Temperature Cool (66) Movement Rolling (110) Ox2 Location -9/Mines Parts ------- > --- POWER (1) -------- Ion Engine > --- PROPULSION (2) --- Wheel Wheel > --- UTILITY (2) ------ High-capacity Storage Unit Structural Scanner > --- WEAPON (2) ------- Field Laser > --- INVENTORY (20) --- Ion Engine Light Treads Aluminum Leg Aluminum Leg Wheel Wheel Wheel Large Storage Unit Compact Battery (200) High-capacity Matter Pod (200) 0b10 Alert Chip Heavy EM Pulse Gun Small Laser Small Laser Particle Gun Light EM Pulse Cannon Latent Energy Streamer Peak State ------------ > --- POWER ------------ Ion Engine > --- PROPULSION ------- Wheel Wheel > --- UTILITY ---------- High-capacity Storage Unit Light Armor Plating > --- WEAPON ----------- Heavy EM Pulse Gun Latent Energy Streamer > --- INVENTORY -------- Light Treads Wheel Wheel Improved Heat Sink Large Storage Unit Compact Battery High-capacity Matter Pod High-capacity Matter Pod Structural Scanner Seismic Detector 0b10 Alert Chip Light Armor Plating Heavy EM Pulse Gun Heavy EM Pulse Gun Field Laser Light EM Pulse Cannon Deploy-a-Sentry Deploy-a-Sentry Deploy-a-Sentry [Rating: 22] Favorites ----------- Power Ion Engine Engine Ion Engine Propulsion Wheel Treads Light Treads Wheel Wheel Utility High-capacity Storage Unit Device Seismic Detector Storage High-capacity Storage Unit Processor Signal Interpreter Protection Light Armor Plating Weapon Heavy EM Pulse Gun Energy Gun Heavy EM Pulse Gun Energy Cannon Latent Energy Streamer Build | -11 -10 -10 -10 -9 ------- Run | Yrd Mat Min Exi Min Slots Evolved . | . . . . . Power . | . . . . . Propulsion . | . . . . . Utility . | . . . . . Weapon . | . . . . . Parts Attached 31 | 8 10 3 6 4 Power 4 | 1 1 1 . 1 Engine 4 | 1 1 1 . 1 Core . | . . . . . Reactor . | . . . . . Propulsion 7 | 3 1 . 2 1 Treads 1 | 1 . . . . Leg . | . . . . . Wheel 6 | 2 1 . 2 1 Hover . | . . . . . Flight . | . . . . . Utility 11 | 2 6 1 1 1 Device 3 | 1 1 . . 1 Storage 3 | 1 2 . . . Processor 3 | . 3 . . . Hackware . | . . . . . Protection 2 | . . 1 1 . Artifact . | . . . . . Weapon 9 | 2 2 1 3 1 Energy Gun 8 | 2 2 1 2 1 Energy Cannon 1 | . . . 1 . Ballistic Gun . | . . . . . Ballistic Cannon . | . . . . . Launcher . | . . . . . Special Weapon . | . . . . . Impact Weapon . | . . . . . Slashing Weapon . | . . . . . Piercing Weapon . | . . . . . Special Melee Weapon . | . . . . . Unidentified Prototypes . | . . . . . Parts Lost 8 | . . 1 3 4 Power 1 | . . . . 1 Propulsion 1 | . . . . 1 Utility 2 | . . . 1 1 Weapon 4 | . . 1 2 1 Highest Loss Streak 3 | . . 1 2 3 To Critical Strikes . | . . . . . Average Backups 14 | 3 14 18 11 12 Power . | . . . . . Propulsion 3 | 1 4 3 2 3 Utility 7 | . 6 10 5 4 Weapon 3 | . 2 4 3 4 Tool/Special . | . . . . . Unused Backups 32 | . 13 4 7 8 Power 1 | . 1 . . . Propulsion 6 | . 4 . . 2 Utility 17 | . 6 3 5 3 Weapon 8 | . 2 1 2 3 Tool/Special . | . . . . . Average Slot Usage (%) 99 | . 99 99 98 97 Engine 13 | . 14 14 14 12 Treads 10 | . 14 14 5 2 Wheel 17 | . 14 14 22 24 Device 2 | . 5 . . 10 Storage 11 | . 14 14 8 14 Processor 5 | . 7 11 . . Protection 8 | . . 2 18 2 Energy Gun 23 | . 28 27 16 27 Energy Cannon 3 | . . . 9 . Peak Build Rating 22 | 7 11 12 22 19 Average Rating 12 | 5 8 10 17 12 On Entrance 7 | . 7 10 12 10 Naked Turns . | . . . . . Heaviest Build 61 | 12 50 54 61 59 Greatest Support 26 | 26 10 10 20 20 Greatest Overweight (x) 5 | 1 4 5 5 4 Average Overweight (x) 3 | . 2 4 2 2 Largest Inventory Capacity 20 | 8 20 20 20 20 Average Capacity 16 | 7 15 20 14 20 Most Carried 20 | 8 20 20 20 17 Average Carried 14 | 3 14 18 13 12 Final Capacity 20 | 8 20 20 20 20 Final Carried 20 | 8 20 19 12 17 Class Distribution -------------------- 95% | Mutant 4% | Scavenger-Mutant Dominant Class ---------------- Mutant | -10/Materials Mutant | -10/Mines Mutant | -10/Exiles Scavenger-Mutant | -9/Mines Resources | -11 -10 -10 -10 -9 ----------- Run | Yrd Mat Min Exi Min Matter Collected 1638 | 280 621 495 98 144 Remotely . | . . . . . Salvage Created 1063 | 212 558 52 33 208 Parts 57 | 18 30 1 . 8 Haulers Intercepted 2 | . 2 . . . Recyclers Shooed 1 | . 1 . . . Parts Field Recycled . | . . . . . Retrieved Matter . | . . . . . Parts Self-Destructed . | . . . . . Prevented . | . . . . . Kills | -11 -10 -10 -10 -9 ------- Run | Yrd Mat Min Exi Min Combat Hostiles Destroyed 13 | . 6 1 2 4 Guns 8 | . 4 . . 4 AOE 5 | . 2 1 2 . Classes Destroyed 9 | 3 4 . 1 1 Worker 5 | 2 2 . . 1 Builder 1 | . 1 . . . Tunneler 5 | 5 . . . . Hauler 2 | . 2 . . . Recycler 2 | 1 1 . . . Watcher 2 | . 2 . . . Grunt 10 | . 6 1 . 3 Brawler 1 | . . . . 1 Assembled 2 | . . . 2 . Best Kill Streak 6 | 6 4 1 2 2 Combat Bots Only 2 | . 2 1 2 2 Max Kills in Single Turn 2 | 1 2 1 2 1 Gunslinging . | . . . . . Exploded 2 | . 1 1 2 . Melee . | . . . . . Uniques/NPCs Destroyed . | . . . . . Combat | -11 -10 -10 -10 -9 -------- Run | Yrd Mat Min Exi Min Hostile Shots Fired 90 | . 33 8 23 26 Missed 22 | . 10 1 5 6 Hits 68 | . 23 7 18 20 Projectile 68 | . 23 7 18 20 Critical Strikes 6 | . . . 6 . Damage Taken 1121 | . 336 136 375 274 Core 260 | . 105 46 69 40 Absorbed by Shields . | . . . . . Core Remaining (%) 100 | 100 . . . . Volleys Fired 77 | 13 38 5 7 14 Largest 2 | 2 2 2 2 2 Hottest 108 | 90 95 90 90 108 Shots Fired 134 | 21 68 9 10 26 Gun 131 | 21 68 9 8 25 Cannon 3 | . . . 2 1 Launcher . | . . . . . Special . | . . . . . Kinetic . | . . . . . Thermal 73 | 21 39 . . 13 Explosive . | . . . . . Electromagnetic 61 | . 29 9 10 13 Robot Hit Streak 15 | 6 10 2 3 15 Robot Miss Streak 5 | 1 2 1 5 4 Penetration Max . | . . . . . Secondary Targets . | . . . . . Shots Hit Robots 88 | 13 48 5 4 18 Core Hits 46 | 9 22 2 4 9 Critical Kills . | . . . . . Critical Parts Destroyed . | . . . . . Critical Strikes 5 | 2 2 1 . . Burn 4 | 2 2 . . . Corrupt 1 | . . 1 . . Melee Attacks . | . . . . . Impact . | . . . . . Slashing . | . . . . . Piercing . | . . . . . Sneak Attacks . | . . . . . Combat Hostiles . | . . . . . Follow-up Attacks . | . . . . . Damage Inflicted 1698 | 168 855 135 188 352 Guns 1194 | 168 627 80 3 316 Cannons . | . . . . . Explosions 491 | . 221 55 185 30 Melee . | . . . . . Ramming 13 | . 7 . . 6 Kinetic . | . . . . . Thermal 966 | 168 572 55 . 171 Explosive . | . . . . . Electromagnetic 719 | . 276 80 188 175 Impact . | . . . . . Slashing . | . . . . . Piercing . | . . . . . Highest Corruption 8 | . . . 6 8 Average Corruption 5 | . . . 5 6 Corruption Purged . | . . . . . Corruption Blocked . | . . . . . Effects 12 | . . . 4 8 Message Errors 3 | . . . . 3 Matter Fused 3 | . . . 1 2 Heat Flow Errors 1 | . . . . 1 Energy Discharges 1 | . . . . 1 Data Loss (minor) 3 | . . . 3 . Alerts 1 | . . . . 1 Overload Shots . | . . . . . Overflow Damage . | . . . . . Projectiles . | . . . . . Explosions . | . . . . . Melee . | . . . . . Knockbacks . | . . . . . Impact . | . . . . . Kinetic . | . . . . . Secondary . | . . . . . Self-Inflicted Damage 127 | . 55 46 . 26 Shots 3 | . 1 1 . 1 Rammed 3 | . 1 . . 2 Targets Rammed 3 | . 1 . . 2 Kicked . | . . . . . Crushed . | . . . . . Highest Temperature 308 | 240 180 177 176 308 Average Temperature 94 | 108 80 85 77 123 Received Heat Transfer 339 | . 159 45 . 135 Siege Activations . | . . . . . Martial Activations . | . . . . . Shielding Activations . | . . . . . Robots Disrupted . | . . . . . Combat Hostiles . | . . . . . Robots Corrupted . | . . . . . Combat Hostiles . | . . . . . Parts Fried . | . . . . . Impact Corruptions . | . . . . . Robots Melted . | . . . . . Combat Hostiles . | . . . . . Parts Melted 2 | 1 1 . . . Heat Transferred 2387 | 618 1349 50 . 370 Parts Sabotaged . | . . . . . Parts Stolen . | . . . . . Parts Stripped . | . . . . . Power Chain Reactions 3 | . 2 1 . . Latent Energy Used 473 | . . . 400 73 LE Corruption 8 | . . . 6 2 Alert | -11 -10 -10 -10 -9 ------- Run | Yrd Mat Min Exi Min Maximum Alert Level . | . . . . . Low Security (%) 100 | 100 100 100 . 100 Level 1 . | . . . . . Level 2 . | . . . . . Level 3 . | . . . . . Level 4 . | . . . . . Level 5 . | . . . . . High Security . | . . . . . Max Security . | . . . . . Peak Influence 148 | 20 107 148 . 40 Initial 6 | . 6 . . . Average 30 | 6 43 28 . 9 Influence Increases 591 | 40 288 158 . 105 Destroy 0b10 Robot/C 300 | . 120 100 . 80 Destroy 0b10 Robot/NC 85 | 40 40 . . 5 Destroy Leader 78 | . 38 20 . 20 Allied During Kill 19 | . . 19 . . Successful Hack 6 | . 6 . . . Disable Machine 30 | . 30 . . . Destroy Structure 13 | . 9 4 . . Lose Combat Pursuer 60 | . 45 15 . . Influence Decreases 571 | 30 298 158 . 85 Entered New Map 4 | . 4 . . . Time Decay 527 | 30 294 158 . 45 Lost Part 40 | . . . . 40 Squads Dispatched 3 | . 2 1 . . Investigation 2 | . 1 1 . . Extermination . | . . . . . Reinforcement 1 | . 1 . . . Assault . | . . . . . Garrison . | . . . . . Intercept . | . . . . . Searches Triggered . | . . . . . Construction Impeded . | . . . . . Haulers Reinforced . | . . . . . Active Scanning Responses . | . . . . . Cargo Convoy Interrupts . | . . . . . Stealth | -11 -10 -10 -10 -9 --------- Run | Yrd Mat Min Exi Min Distress Signals 1 | . 1 . . . Communications Jammed . | . . . . . Distress Signals . | . . . . . Times Spotted 33 | . 14 4 9 6 Peak Tracking Total 11 | . 3 3 11 3 Tactical Retreats 4 | . 2 1 1 . Traps | -11 -10 -10 -10 -9 ------- Run | Yrd Mat Min Exi Min Traps Triggered 1 | . 1 . . . Indirectly . | . . . . . Trap Hack Attempts . | . . . . . Triggered . | . . . . . Disarmed . | . . . . . Reprogrammed . | . . . . . Reused . | . . . . . Traps Extracted . | . . . . . Installed . | . . . . . Triggered . | . . . . . Machines | -11 -10 -10 -10 -9 ---------- Run | Yrd Mat Min Exi Min Machines Disabled 6 | . 2 . 4 . Max in Single Turn 2 | . 2 . 2 . Machines Repaired . | . . . . . Machines Dismantled . | . . . . . Machines Sabotaged . | . . . . . Overloaded Fab Kills . | . . . . . Hacking | -11 -10 -10 -10 -9 --------- Run | Yrd Mat Min Exi Min Machines Accessed 8 | . 2 1 5 . Terminals 1 | . 1 . . . Fabricators . | . . . . . Repair Stations . | . . . . . Recycling Units 1 | . 1 . . . Scanalyzers . | . . . . . Garrison Access . | . . . . . Total Hacks 57 | . 6 1 50 . Successful 55 | . 4 1 50 . Failed 2 | . 2 . . . Catastrophic . | . . . . . Database Lockouts . | . . . . . Manual 3 | . 2 . 1 . Terminals 2 | . 2 . . . Fabricators . | . . . . . Repair Stations . | . . . . . Recycling Units 4 | . 4 . . . Scanalyzers . | . . . . . Garrison Access . | . . . . . Terminal Hacks 52 | . 1 1 50 . Record 49 | . . . 49 . Prototype ID Bank 1 | . 1 . . . Open Door 1 | . . 1 . . Proto ID Catalog 1 | . . . 1 . Fabricator Hacks . | . . . . . Repair Station Hacks . | . . . . . Recycling Unit Hacks 1 | . 1 . . . Retrieve Components 1 | . 1 . . . Scanalyzer . | . . . . . Garrison Access Hacks . | . . . . . Unauthorized Hacks 2 | . 2 . . . Terminals . | . . . . . Fabricators . | . . . . . Repair Stations . | . . . . . Recycling Units 2 | . 2 . . . Recyclers 1 | . 1 . . . Mask 1 | . 1 . . . Scanalyzers . | . . . . . Garrison Access . | . . . . . Data Cores Recovered . | . . . . . Used . | . . . . . Hacking Detections 2 | . 2 . . . Full Trace Events . | . . . . . Feedback Events . | . . . . . Feedback Blocked . | . . . . . Robot Schematics Acquired . | . . . . . Robots Built . | . . . . . Authchips . | . . . . . Time . | . . . . . Total Robot Build Rating . | . . . . . Part Schematics Acquired . | . . . . . Parts Built . | . . . . . Authchips . | . . . . . Time . | . . . . . Total Part Build Rating . | . . . . . Parts Repaired . | . . . . . Time . | . . . . . Parts Recycled . | . . . . . Recycled Matter . | . . . . . Retrieved Matter . | . . . . . Retrieved Components 3 | . 3 . . . Parts Scanalyzed . | . . . . . Part Schematics Acquired . | . . . . . Parts Damaged . | . . . . . Bothacking | -11 -10 -10 -10 -9 ------------ Run | Yrd Mat Min Exi Min Used RIF Installer . | . . . . . Robots Hacked . | . . . . . Non-combat . | . . . . . Combat . | . . . . . Robot Hacks Applied . | . . . . . Relay Couplers Released . | . . . . . Fabnet Peak Effective % . | . . . . . Robots Rewired . | . . . . . Allies Hacked . | . . . . . Hacks Repelled . | . . . . . Allies | -11 -10 -10 -10 -9 -------- Run | Yrd Mat Min Exi Min Total Allies 5 | . . 5 . . Largest Group 5 | . . 5 5 . Highest-Rated Group 85 | . . 85 85 . Highest-Rated Ally 31 | . . 31 31 . Total Orders 2 | . . . 2 . STAY 1 | . . . 1 . ROAM 1 | . . . 1 . Ally Attacks 41 | . . 17 24 . Total Damage 1145 | . . 199 946 . Kills 9 | . . 4 5 . Allies Corrupted . | . . . . . Allies Melted . | . . . . . Turrets Deployed 3 | . . . 3 . Intel | -11 -10 -10 -10 -9 ------- Run | Yrd Mat Min Exi Min Active Infowar (turns) 790 | 39 592 . . 159 Structural 159 | . . . . 159 Seismic 328 | 39 289 . . . T.N.C. 303 | . 303 . . . Robot Analysis Total . | . . . . . Derelict Logs Recovered 2 | . . 2 . . Drone Launches . | . . . . . Drone Recoveries . | . . . . . Exploration | -11 -10 -10 -10 -9 ------------- Run | Yrd Mat Min Exi Min Turns Passed 3148 | 112 705 969 1156 206 Spaces Moved 2084 | 64 437 594 886 103 Core 14 | 14 . . . . Treads . | . . . . . Legs . | . . . . . Wheels 2070 | 50 437 594 886 103 Hover . | . . . . . Flight . | . . . . . Fastest Speed 50 | 50 95 140 80 110 Average Speed 126 | 84 117 149 120 110 Slowest Speed 155 | 95 140 155 155 140 Overloaded Moves . | . . . . . Propulsion Burnouts . | . . . . . Robots Hopped . | . . . . . Potential Cave-ins . | . . . . . Cave-ins Triggered . | . . . . . Exploration Rate (%) 48 | 3 50 98 80 11 Regions Visited 4 Branch Regions 3 Pre-discovered Areas 2 | . . 1 1 . Known Exits Taken 3 | . 1 1 1 . Unknown Exits Taken 1 | 1 . . . . Scrap Searched 1 | . . 1 . . Spaces Dug . | . . . . . Terrain Destroyed 43 | . 8 4 31 . Melee . | . . . . . Projectile . | . . . . . AOE 43 | . 8 4 31 . Terrain Rammed . | . . . . . Walls Destroyed . | . . . . . Machines Disabled . | . . . . . Actions | -11 -10 -10 -10 -9 --------- Run | Yrd Mat Min Exi Min Total 2471 | 98 575 670 966 162 Wait 138 | 2 27 53 30 26 Move 2081 | 63 437 593 885 103 Hop . | . . . . . Pick Up 79 | 12 33 8 18 8 Fast Attach 11 | 3 2 . 5 1 Attach 10 | 4 . 2 1 3 Detach 3 | . . . 3 . Swap 21 | 1 10 1 4 5 Drop 49 | . 28 8 13 . Fire 77 | 13 38 5 7 14 Melee . | . . . . . Ram . | . . . . . Kick . | . . . . . Crush 2 | . . . . 2 Escape Stasis . | . . . . . Rewire . | . . . . . Trap . | . . . . . Miscellaneous . | . . . . . Route ------- -11/Scrapyard -10/Materials (discovered 4 exits: *Mat / *Min x2 / *Sub) -10/Mines (discovered 4 exits: *Mat x2 / *Exi / *Sub) -10/Exiles (discovered 2 exits: *Min x2) -9/Mines History --------- Turn | Location | Event 3 | -11/Scrapyard | Discovered new exit (range 15) 113 | -11/Scrapyard | Entered Materials 298 | -10/Materials | Discovered new exit (range 13) 315 | -10/Materials | Build established: Mutant 429 | -10/Materials | Discovered new exit (range 10) 543 | -10/Materials | Discovered new exit (range 16) 630 | -10/Materials | Discovered new exit (range 7) 738 | -10/Materials | Identified exit to Mines 813 | -10/Materials | Derelicts attacked the area 818 | -10/Materials | Entered Mines 874 | -10/Mines | Deemed a non-threat by the Exiles lab entrance 875 | -10/Mines | Discovered new exit (range 5) 879 | -10/Mines | Identified exit to Exiles 978 | -10/Mines | Discovered new exit (range 13) 994 | -10/Mines | Assisted by bots powering up and referring to "LRC-V3" 999 | -10/Mines | Identified exit to Materials 1129 | -10/Mines | Discovered exit to Materials (range 8) 1144 | -10/Mines | Core integrity fell below 50% 1313 | -10/Mines | Discovered new exit (range 12) 1331 | -10/Mines | Identified exit to Subcaves 1559 | -10/Mines | Met a Derelict shopkeep closing up shop 1787 | -10/Mines | Entered Exiles 1787 | -10/Exiles | Accompanied by 5 allies 1788 | -10/Exiles | Identified exit to Mines 1817 | -10/Exiles | Led the pair of lost Derelicts to a safe place 1826 | -10/Exiles | Met 8R-AWN 1856 | -10/Exiles | Met EX-HEX 1899 | -10/Exiles | Met EX-BIN 1921 | -10/Exiles | Aligned with FarCom system 1923 | -10/Exiles | Given EX-Vault access code 1961 | -10/Exiles | Opened EX-Vault 1982 | -10/Exiles | Found Deploy-a-Sentry 1984 | -10/Exiles | Found Deploy-a-Sentry 1986 | -10/Exiles | Found Deploy-a-Sentry 1988 | -10/Exiles | Found 0b10 Alert Chip 1993 | -10/Exiles | Found Latent Energy Streamer 2061 | -10/Exiles | Warned to stay clear of 0b10 Research branches 2109 | -10/Exiles | Met EX-DEC 2146 | -10/Exiles | Learned location of Zion (-7) 2195 | -10/Exiles | Visited The Gauntlet 2755 | -10/Exiles | DAS Turret deployed 2759 | -10/Exiles | DAS Turret deployed 2760 | -10/Exiles | DAS Turret deployed 2808 | -10/Exiles | Attacked by the Exiles 2908 | -10/Exiles | Core integrity fell below 20% 2943 | -10/Exiles | Stole two prototypes: 0b10 Alert Chip, Latent Energy Streamer 2943 | -10/Exiles | Entered Mines 3010 | -9/Mines | Lost 3 parts (1p1n1u) 3149 | -9/Mines | Destroyed by G-47 Trooper with Particle Gun Last Messages --------------- 03010_ System corrupted: Heat flow error (+212). 03020_ Acquired Wheel. 03021_ Acquired 12 matter. 03024_ Acquired Corrupted Wheel. 03030_ Acquired Corrupted Particle Gun. 03033_ Acquired 15 matter. 03037_ Acquired Sml. Laser. 03059_ 6%I=TJB|OFT 9J9X7OWMXSDOYGE< 5XQGL=XL 03077_ System corrupted: Matter fused (-9). 03077_ Acquired 9 matter. 03097_ O9BMZ0M,00>0#VYIY9=OI=A8PIEE=G,2K8XD3U 03121_ B-36 Bruiser destroyed. 03124_ MJSQ CEKZMP5H6D:>PWECZMV2KE6 03143_ System corrupted: Energy discharge (-63). 03147_ Hvy. EM Pulse Gun destroyed. Map ----- +----------------------------------------------------+ | ??## """ ##?????????????????????????????????????? | | ??## """ ##?????????????????????????????????????? | | ??## ##?????????????????????????????????????? | | ??## ##?????????????????????????????????????? | | ??### ######?????????????????????????????????????? | | ??### ######?????????????????????????????????????? | | ???## ##?????????????????????????????????????????? | | ???## ##?????????????????????????????????????????? | | ???## ##?????????????????????????????????????????? | | ???## ##?????????????????????????????????????????? | | ???## ##?????????????????????????????????????????? | | ???## ##?????????????????????????????????????????? | | ???## ##?????????????????????????????????????????? | | ???## ##?????????????????????????????????????????? | | ???## ##???######????????????????????????????????? | | ???##=##?#########???????????????????????????????? | | ???## ####### ######????????????????????????????? | | ???## ##### #####????????????????????????????? | | ???## % ########??????????????????????? | | ???###### ## ###########???????????????????? | | ???###### ## ## ######??????????????????? | | ???????### ##%## ####?????????????????? | | ???????###### ###%## ###?????????????????? | | ????????########## ## ##?????????????????? | | ???????????####### ##?????????????????? | | ????????????????#########@ ##?????????????????? | | ????????????????########## g ??????????? | | ???????????????????????#### ######### ??????????? | | ?????????????????????????##############??????????? | | ??????????????????????????#####??????????????????? | | ?????????????????????????????????????????????????? | | ?????????????????????????????????????????????????? | | ?????????????????????????????????????????????????? | | ?????????????????????????????????????????????????? | | ?????????????????????????????????????????????????? | | ?????????????????????????????????????????????????? | | ?????????????????????????????????????????????????? | | ?????????????????????????????????????????????????? | | ?????????????????????????????????????????????????? | | ?????????????????????????????????????????????????? | | ?????????????????????????????????????????????????? | | ?????????????????????????????????????????????????? | | ?????????????????????????????????????????????????? | | ?????????????????????????????????????????????????? | | ?????????????????????????????????????????????????? | | ?????????????????????????????????????????????????? | | ?????????????????????????????????????????????????? | | ?????????????????????????????????????????????????? | | ?????????????????????????????????????????????????? | | ?????????????????????????????????????????????????? | +----------------------------------------------------+ Best States ------------- Heat Dissipation 25 Energy Generation 10 Energy Capacity 250 Matter Stores 300 Matter Capacity 300 Sight Range 16 Terrain Scan Density 10 Armor Coverage 300 Evasion (%) 44 Recoil Reduction 1 Item Schematics ----------------- None Robot Schematics ------------------ None Fabricated ------------ Nothing Repaired ---------- Nothing Alien Tech Used ----------------- None Achievements -------------- None Challenges ------------ None Game ------ Seed LaserDrainedDesublimator Manual? 0 Play Time 00:32:12 Cumulative 231.3 hours Start 2025.06.05 @ 19:40:08 End 2025.06.05 @ 20:21:43 Sessions 1 Manual Loads 0 Difficulty Rogue Special Mode None Game No. 233 Rogue 233 Adventurer 0 Explorer 0 Win Type - Total 1 Types 1/0/0/0/0/0/0/0/0/0 Lore% 74 Gallery% 74 Achievement% 66 Wizard Run 0 Options --------- Layout 1 ASCII 0 Keyboard 0 Movement Numpad Keybinds 0 Fullscreen 1 Font 24/Smallcaps Map View 50x35 Zoom Use 0% Tactical HUD 1 Map Filters NONE Filters NONE Steam 1 RUN: 660cacaf-00f9-43c5-b05f-2f58783162bd